fUST/lending_fUST_20241115
["ID","MTS","AMOUNT","RATE_DAILY","PERIOD"]
[342251919,1731654660503,-6369.13,0.00018356,2]
[342251920,1731654660512,-500.0,0.00018356,2]
[342251921,1731654660521,-1669.53,0.00018356,2]
[342251922,1731654660531,-500.0,0.00018356,2]
[342251923,1731654660540,-860.9,0.00018356,2]
[342251924,1731654660549,-716.58,0.00018356,2]
[342251925,1731654660558,-610.43,0.00018356,2]
[342251926,1731654660568,-6076.35,0.00018356,2]
[342251927,1731654660578,-532.03,0.00018356,2]
[342251928,1731654660592,-814.89,0.00018356,2]
[342251929,1731654660601,-552.47,0.00018356,2]
[342251930,1731654660611,-3259.65,0.00018356,2]
[342251931,1731654660621,-519.43,0.00018356,2]
[342251932,1731654660630,-1510.18,0.00018356,2]
[342251933,1731654660640,-20517.05,0.00018356,2]
[342251934,1731654660650,-3232.98,0.00018356,2]
[342251935,1731654660659,-815.29,0.00018356,2]
[342251936,1731654660669,-500.0,0.00018356,2]
[342251937,1731654660678,-20385.96,0.00018356,2]
[342251938,1731654660688,-500.0,0.00018356,2]
[342251939,1731654660697,-542.01,0.00018356,2]
[342251940,1731654660706,-1586.05,0.00018356,2]
[342251941,1731654660716,-514.35,0.00018356,2]
[342251942,1731654660725,-500.0,0.00018526,2]
[342251943,1731654660734,-500.14319675,0.00018526,2]
[342251944,1731654660745,-500.0,0.00018526,2]
[342251945,1731654660754,-500.0,0.00018531,2]
[342251946,1731654660762,-500.0,0.00018552,2]
[342251947,1731654660771,-500.0,0.00018552,2]
[342251948,1731654660780,-1152.0,0.00018553,2]
[342251949,1731654660789,-502.78539919,0.0001863,2]
[342251950,1731654660798,-579.73,0.0001863,2]
[342251951,1731654660807,-503.96,0.0001863,2]
[342251952,1731654660816,-527.12,0.0001863,2]
[342251953,1731654660826,-528.3,0.0001863,2]
[342251954,1731654660835,-518.6,0.0001863,2]
[342251955,1731654660844,-500.0,0.0001863,2]
[342251956,1731654660853,-691.77,0.0001863,2]
[342251957,1731654660863,-500.0,0.0001863,2]
[342251958,1731654660872,-500.0,0.0001863,2]
[342251959,1731654660881,-414.15317804,0.0001863,2]
[342251960,1731654660891,-516.72,0.0001863,2]
[342251961,1731654660899,-2110.93,0.0001863,2]
[342251962,1731654660910,-678.65,0.0001863,2]
[342251963,1731654660920,-1033.95,0.0001863,2]
[342251964,1731654660930,-555.76856925,0.0001863,2]
[342251965,1731654660940,-1306.17,0.0001863,2]
[342251966,1731654660950,-1263.29,0.0001863,2]
[342251967,1731654660959,-500.0,0.0001863,2]
[342251968,1731654660969,-2127.12,0.0001863,2]
[342251969,1731654660978,-500.0,0.0001863,2]
[342251970,1731654660987,-512.52,0.0001863,2]
[342251971,1731654661003,-500.0,0.0001863,2]
[342251972,1731654661012,-1629.51,0.0001863,2]
[342251973,1731654661022,-1431.45,0.0001863,2]
[342251974,1731654661032,-826.96,0.0001863,2]
[342251975,1731654661041,-571.98,0.0001863,2]
[342251976,1731654661051,-604.41,0.0001863,2]
[342251977,1731654661060,-588.9,0.0001863,2]
[342251978,1731654661069,-584.06,0.0001863,2]
[342251979,1731654661079,-615.70386273,0.0001863,2]
[342251980,1731654661088,-500.0,0.0001863,2]
[342251981,1731654661097,-552.59,0.0001863,2]
[342251982,1731654661107,-185.9,0.0001863,2]
[342251983,1731654661117,-500.0,0.0001863,2]
[342251984,1731654661128,-500.0,0.0001863,2]
[342251985,1731654661138,-700.9,0.0001863,2]
[342251986,1731654661147,-500.0,0.0001863,2]
[342251987,1731654661157,-2107.61,0.0001863,2]
[342251988,1731654661167,-1624.89,0.0001863,2]
[342251989,1731654661177,-1124.9,0.0001863,2]
[342251990,1731654661187,-500.0,0.0001863,2]
[342251991,1731654661196,-3048.96,0.0001863,2]
[342251992,1731654661206,-568.96,0.0001863,2]
[342251993,1731654661216,-813.77,0.0001863,2]
[342251994,1731654661226,-500.0,0.0001863,2]
[342251995,1731654661235,-871.65,0.0001863,2]
[342251996,1731654661245,-689.22,0.0001863,2]
[342251997,1731654661255,-1242.67,0.0001863,2]
[342251998,1731654661265,-3267.27,0.0001863,2]
[342251999,1731654661274,-944.33,0.0001863,2]
[342252000,1731654661284,-642.35,0.0001863,2]
[342252001,1731654661293,-6369.13,0.0001863,2]
[342252002,1731654661303,-373.61211113,0.0001863,2]
[342252003,1731654661312,-1669.53,0.0001863,2]
[342252004,1731654661322,-500.0,0.0001863,2]
[342252005,1731654661331,-860.9,0.0001863,2]
[342252006,1731654661340,-716.58,0.0001863,2]
[342252007,1731654661349,-610.43,0.0001863,2]
[342252008,1731654661358,-6076.35,0.0001863,2]
[342252009,1731654661368,-532.03,0.0001863,2]
[342252010,1731654661377,-814.89,0.0001863,2]
[342252011,1731654661387,-552.47,0.0001863,2]
[342252012,1731654661396,-3259.65,0.0001863,2]
[342252013,1731654661406,-519.43,0.0001863,2]
[342252014,1731654661416,-1510.18,0.0001863,2]
[342252015,1731654661425,-20517.05,0.0001863,2]
[342252016,1731654661436,-3232.98,0.0001863,2]
[342252017,1731654661446,-815.29,0.0001863,2]
[342252018,1731654661455,-500.0,0.0001863,2]
[342252019,1731654661465,-20385.96,0.0001863,2]
[342252020,1731654661475,-500.0,0.0001863,2]
[342252021,1731654661485,-542.01,0.0001863,2]
[342252022,1731654661497,-1586.05,0.0001863,2]
[342252023,1731654661515,-514.35,0.0001863,2]
[342252024,1731654661528,-500.0,0.00018644,2]
[342252025,1731654661538,-611.06540246,0.00018644,2]
[342252026,1731654661547,-500.0,0.00018645,2]
[342252027,1731654661557,-150.0,0.00018747,2]
[342252028,1731654661567,-150.0,0.00018747,2]
[342252029,1731654661576,-150.0,0.00018747,2]
[342252030,1731654661586,-530.0,0.00018747,2]
[342252031,1731654661595,-1113.0,0.00018747,2]
[342252032,1731654661605,-2387.0,0.00018747,2]
[342252033,1731654661617,-14968.17675077,0.000189,2]
[342252034,1731654661627,-14968.17675077,0.000189,2]
[342252035,1731654661637,-14968.17675077,0.000189,2]
[342252036,1731654661647,-14968.17675077,0.000189,2]
[342252037,1731654661658,-579.73,0.00018904,2]
[342252038,1731654661669,-503.96,0.00018904,2]
[342252039,1731654661682,-527.12,0.00018904,2]
[342252040,1731654661695,-528.3,0.00018904,2]
[342252041,1731654661705,-518.6,0.00018904,2]
[342252042,1731654661716,-500.0,0.00018904,2]
[342252043,1731654661730,-691.77,0.00018904,2]
[342252044,1731654661739,-500.0,0.00018904,2]
[342252045,1731654661754,-500.0,0.00018904,2]
[342252046,1731654661764,-516.72,0.00018904,2]
[342252047,1731654661775,-2110.93,0.00018904,2]
[342252048,1731654661785,-678.65,0.00018904,2]
[342252049,1731654661795,-1033.95,0.00018904,2]
[342252050,1731654661805,-1306.17,0.00018904,2]
[342252051,1731654661816,-1263.29,0.00018904,2]
[342252052,1731654661826,-500.0,0.00018904,2]
[342252053,1731654661836,-2127.12,0.00018904,2]
[342252054,1731654661846,-500.0,0.00018904,2]
[342252055,1731654661856,-512.52,0.00018904,2]
[342252056,1731654661865,-500.0,0.00018904,2]
[342252057,1731654661875,-1629.51,0.00018904,2]
[342252058,1731654661884,-1431.45,0.00018904,2]
[342252059,1731654661893,-826.96,0.00018904,2]
[342252060,1731654661903,-571.98,0.00018904,2]
[342252061,1731654661912,-604.41,0.00018904,2]
[342252062,1731654661923,-588.9,0.00018904,2]
[342252063,1731654661933,-584.06,0.00018904,2]
[342252064,1731654661943,-500.0,0.00018904,2]
[342252065,1731654661953,-552.59,0.00018904,2]
[342252066,1731654661962,-185.9,0.00018904,2]
[342252067,1731654661973,-500.0,0.00018904,2]
[342252068,1731654661982,-500.0,0.00018904,2]
[342252069,1731654661995,-700.9,0.00018904,2]
[342252070,1731654662005,-307.79420569,0.00018904,2]
[342252071,1731654662016,-2107.61,0.00018904,2]
[342252072,1731654662026,-1624.89,0.00018904,2]
[342252073,1731654662036,-1124.9,0.00018904,2]
[342252074,1731654662046,-500.0,0.00018904,2]
[342252075,1731654662057,-3048.96,0.00018904,2]
[342252076,1731654662067,-568.96,0.00018904,2]
[342252077,1731654662077,-500.0,0.00018904,2]
[342252078,1731654662088,-813.77,0.00018904,2]
[342252079,1731654662097,-871.65,0.00018904,2]
[342252080,1731654662107,-689.22,0.00018904,2]
[342252081,1731654662117,-1242.67,0.00018904,2]
[342252082,1731654662127,-3267.27,0.00018904,2]
[342252083,1731654662137,-944.33,0.00018904,2]
[342252084,1731654662147,-642.35,0.00018904,2]
[342252085,1731654662156,-6369.13,0.00018904,2]
[342252086,1731654662166,-1669.53,0.00018904,2]
[342252087,1731654662176,-500.0,0.00018904,2]
[342252088,1731654662186,-860.9,0.00018904,2]
[342252089,1731654662196,-716.58,0.00018904,2]
[342252090,1731654662206,-610.43,0.00018904,2]
[342252091,1731654662216,-6076.35,0.00018904,2]
[342252092,1731654662225,-532.03,0.00018904,2]
[342252093,1731654662235,-814.89,0.00018904,2]
[342252094,1731654662249,-552.47,0.00018904,2]
[342252095,1731654662259,-3259.65,0.00018904,2]
[342252096,1731654662268,-519.43,0.00018904,2]
[342252097,1731654662278,-1510.18,0.00018904,2]
[342252098,1731654662288,-20517.05,0.00018904,2]
[342252099,1731654662297,-3232.98,0.00018904,2]
[342252100,1731654662307,-815.29,0.00018904,2]
[342252101,1731654662317,-20385.96,0.00018904,2]
[342252102,1731654662326,-500.0,0.00018904,2]
[342252103,1731654662336,-500.0,0.00018904,2]
[342252104,1731654662345,-542.01,0.00018904,2]
[342252105,1731654662355,-1586.05,0.00018904,2]
[342252106,1731654662364,-514.35,0.00018904,2]
[342252107,1731654662373,-16180.24899137,0.00019,12]
[342252108,1731654662383,-501.40444701,0.00019074,2]
[342252109,1731654662393,-514.17214979,0.00019074,2]
[342252110,1731654662402,-1002.02976357,0.00019079,2]
[342252111,1731654662411,-1000.0,0.00019099,2]
[342252112,1731654662421,-1000.0,0.00019099,2]
[342252113,1731654662430,-329.0,0.0001911,2]
[342252114,1731654662440,-2000.0,0.00019131,2]
[342252115,1731654662450,-2000.0,0.00019131,2]
[342252116,1731654662461,-2000.0,0.00019131,2]
[342252117,1731654662470,-579.73,0.00019178,2]
[342252118,1731654662479,-771.74,0.00019178,2]
[342252119,1731654662489,-771.74,0.00019178,2]
[342252120,1731654662500,-771.74,0.00019178,2]
[342252121,1731654662512,-771.74,0.00019178,2]
[342252122,1731654662522,-469.42401434,0.00019178,2]
[342252123,1731654662763,161.61,0.00010959,2]
[342252124,1731654663260,808.09,0.00010959,2]
[342252125,1731654741812,153.277,0.00027,60]
[342252126,1731654858907,400.0,0.00011,3]
[342252127,1731655279029,153.318,0.0002619,60]
[342252128,1731655360579,153.262,0.0002619,60]
[342252130,1731655413489,153.56,0.00027,60]
[342252132,1731655755094,-250.0,0.00012345,2]
[342252133,1731655755115,-587.14922103,0.00012547,2]
[342252181,1731655838268,-300.0,0.00012468,2]
[342252182,1731655838278,-1.45521788,0.00012469,2]
[342252183,1731655838289,-12916.32821752,0.00012469,2]
[342252184,1731655838299,-4504.90425423,0.00012547,2]
[342252185,1731655838308,-856.64838599,0.00012647,2]
[342252186,1731655838317,-24280.5202929,0.00012648,2]
[342252187,1731655838326,-274.50171508,0.00013597,2]
[342252188,1731655838335,-846.14979778,0.00013598,2]
[342252189,1731655838345,-1000.0,0.00013598,2]
[342252190,1731655838354,-846.14979774,0.00013666,2]
[342252191,1731655838365,-500.0,0.00013673,2]
[342252192,1731655838374,-526.63246595,0.00013673,2]
[342252193,1731655838383,-500.0,0.00013673,2]
[342252194,1731655838393,-500.0,0.00013673,2]
[342252195,1731655838402,-505.39217506,0.00013673,2]
[342252196,1731655838411,-628.66024224,0.00013673,2]
[342252197,1731655838421,-500.0,0.00013673,2]
[342252199,1731655838430,-500.0,0.00013698,2]
[342252200,1731655838440,-303.92901175,0.00013698,2]
[342252201,1731655838450,-500.0,0.00013698,2]
[342252202,1731655838459,-500.0,0.00013698,2]
[342252203,1731655838469,-272.76827097,0.00013698,2]
[342252204,1731655838478,-500.37553191,0.00013698,2]
[342252205,1731655838488,-500.0,0.00013698,2]
[342252206,1731655838497,-513.20144115,0.00013698,2]
[342252207,1731655838506,-500.0,0.00013698,2]
[342252208,1731655838516,-503.00209994,0.00013698,2]
[342252209,1731655838525,-503.03911293,0.00013698,2]
[342252210,1731655838534,-504.55,0.00013698,2]
[342252211,1731655838543,-500.0,0.00013698,2]
[342252212,1731655838552,-500.0,0.00013698,2]
[342252213,1731655838561,-403.40109068,0.00013698,2]
[342252214,1731655838570,-500.00410625,0.00013698,2]
[342252215,1731655838579,-507.14945719,0.00013698,2]
[342252216,1731655838588,-506.57605679,0.00013698,2]
[342252217,1731655838597,-500.0,0.00013698,2]
[342252218,1731655838606,-510.07784804,0.00013698,2]
[342252219,1731655838616,-500.0,0.00013698,2]
[342252220,1731655838625,-216.70809453,0.00013698,2]
[342252221,1731655838634,-500.0,0.00013698,2]
[342252222,1731655838643,-500.0,0.00013698,2]
[342252223,1731655838652,-504.56979682,0.00013698,2]
[342252224,1731655838661,-500.0,0.00013698,2]
[342252225,1731655838670,-500.0,0.00013698,2]
[342252226,1731655838679,-500.0,0.00013698,2]
[342252227,1731655838688,-500.0,0.00013698,2]
[342252228,1731655838697,-504.04337529,0.00013698,2]
[342252229,1731655838707,-500.0,0.00013698,2]
[342252230,1731655838717,-500.0,0.00013698,2]
[342252231,1731655838726,-501.46231097,0.00013698,2]
[342252232,1731655838735,-549.5,0.00013698,2]
[342252233,1731655838744,-500.0,0.00013698,2]
[342252234,1731655838753,-723.15,0.00013698,2]
[342252235,1731655838763,-500.0,0.00013698,2]
[342252236,1731655838772,-500.0,0.00013698,2]
[342252237,1731655838781,-587.81336303,0.00013698,2]
[342252238,1731655838790,-500.0,0.00013698,2]
[342252239,1731655838800,-160.26876482,0.00013698,2]
[342252240,1731655838809,-500.0,0.00013698,2]
[342252241,1731655838818,-549.79,0.00013698,2]
[342252242,1731655838833,-201.86942554,0.00013698,2]
[342252243,1731655838852,-256.47129131,0.00013698,2]
[342252244,1731655838862,-500.0,0.00013698,2]
[342252245,1731655838872,-208.61525512,0.00013698,2]
[342252246,1731655838881,-359.47365697,0.00013698,2]
[342252247,1731655838891,-500.0,0.00013698,2]
[342252248,1731655838900,-500.0,0.00013698,2]
[342252249,1731655838910,-504.33751304,0.00013698,2]
[342252250,1731655838919,-500.0,0.00013698,2]
[342252251,1731655838928,-500.0,0.00013698,2]
[342252252,1731655838938,-500.0,0.00013698,2]
[342252253,1731655838947,-500.0,0.00013698,2]
[342252254,1731655838955,-500.0,0.00013698,2]
[342252255,1731655838965,-500.0,0.00013698,2]
[342252256,1731655838974,-258.97290928,0.00013698,2]
[342252257,1731655838983,-298.22795768,0.00013698,2]
[342252258,1731655838992,-167.39972124,0.00013698,2]
[342252259,1731655839002,-500.0,0.00013698,2]
[342252260,1731655839011,-500.0,0.00013698,2]
[342252261,1731655839020,-502.25407752,0.00013698,2]
[342252262,1731655839029,-500.0,0.00013698,2]
[342252263,1731655839038,-500.0,0.00013698,2]
[342252264,1731655839048,-500.0,0.00013698,2]
[342252265,1731655839058,-164.22603579,0.00013698,2]
[342252266,1731655839066,-501.55319003,0.00013698,2]
[342252267,1731655839076,-500.0,0.00013698,2]
[342252268,1731655839085,-500.0,0.00013698,2]
[342252269,1731655839094,-500.0,0.00013698,2]
[342252270,1731655839103,-503.85079326,0.00013698,2]
[342252271,1731655839114,-783.7,0.00013698,2]
[342252272,1731655839123,-503.57902328,0.00013698,2]
[342252273,1731655839132,-517.86862998,0.00013698,2]
[342252274,1731655839141,-502.89438685,0.00013698,2]
[342252275,1731655839150,-500.0,0.00013698,2]
[342252276,1731655839159,-500.0,0.00013698,2]
[342252277,1731655839168,-599.49272578,0.00013698,2]
[342252278,1731655839177,-500.0,0.00013698,2]
[342252279,1731655839186,-500.0,0.00013698,2]
[342252280,1731655839195,-583.08042484,0.00013698,2]
[342252281,1731655839204,-500.0,0.00013698,2]
[342252282,1731655839213,-500.0,0.00013698,2]
[342252283,1731655839222,-500.0,0.00013698,2]
[342252284,1731655839231,-500.0,0.00013698,2]
[342252285,1731655839241,-500.0,0.00013698,2]
[342252286,1731655839249,-500.0,0.00013698,2]
[342252287,1731655839258,-523.30109065,0.00013698,2]
[342252288,1731655839267,-555.92914865,0.00013698,2]
[342252289,1731655839277,-500.0,0.00013698,2]
[342252290,1731655839286,-500.0,0.00013698,2]
[342252291,1731655839295,-511.67514007,0.00013698,2]
[342252292,1731655839304,-500.0,0.00013698,2]
[342252293,1731655839313,-805.51,0.00013698,2]
[342252294,1731655839322,-500.0,0.00013698,2]
[342252295,1731655839331,-500.0,0.00013698,2]
[342252296,1731655839340,-509.05646884,0.00013698,2]
[342252297,1731655839349,-504.50102982,0.00013698,2]
[342252298,1731655839358,-500.0,0.00013698,2]
[342252299,1731655839371,-497.2828268,0.00013698,2]
[342252300,1731655839380,-500.0,0.00013698,2]
[342252301,1731655839389,-500.0,0.00013698,2]
[342252302,1731655839398,-526.66577935,0.00013698,2]
[342252303,1731655839408,-500.0,0.00013698,2]
[342252304,1731655839417,-501.24392323,0.00013698,2]
[342252305,1731655839426,-501.57835297,0.00013698,2]
[342252306,1731655839436,-504.93000342,0.00013698,2]
[342252307,1731655839445,-500.0,0.00013698,2]
[342252308,1731655839456,-500.0,0.00013698,2]
[342252309,1731655839465,-500.0,0.00013698,2]
[342252310,1731655839474,-500.0,0.00013698,2]
[342252311,1731655839484,-500.0,0.00013698,2]
[342252312,1731655839493,-500.0,0.00013698,2]
[342252313,1731655839502,-505.93613482,0.00013698,2]
[342252314,1731655839511,-500.0,0.00013698,2]
[342252315,1731655839520,-500.0,0.00013698,2]
[342252316,1731655839529,-500.0,0.00013698,2]
[342252317,1731655839538,-512.56544488,0.00013698,2]
[342252318,1731655839549,-500.0,0.00013698,2]
[342252319,1731655839558,-500.0,0.00013698,2]
[342252320,1731655839567,-500.0,0.00013698,2]
[342252321,1731655839577,-500.0,0.00013698,2]
[342252322,1731655839586,-510.4143625,0.00013698,2]
[342252323,1731655839595,-226.94508697,0.00013698,2]
[342252324,1731655839604,-500.0,0.00013698,2]
[342252325,1731655839616,-519.44235356,0.00013698,2]
[342252326,1731655839625,-595.82,0.00013698,2]
[342252327,1731655839635,-500.0,0.00013698,2]
[342252329,1731655839645,-502.76903736,0.00013698,2]
[342252330,1731655839654,-500.0,0.00013698,2]
[342252331,1731655839663,-500.0,0.00013698,2]
[342252332,1731655839673,-500.0,0.00013698,2]
[342252333,1731655839683,-506.32671332,0.00013698,2]
[342252334,1731655839692,-500.0,0.00013698,2]
[342252335,1731655839701,-500.0,0.00013698,2]
[342252336,1731655839710,-500.0,0.00013698,2]
[342252338,1731655839720,-500.0,0.00013698,2]
[342252339,1731655839730,-500.0,0.00013698,2]
[342252340,1731655839740,-500.0,0.00013698,2]
[342252341,1731655839750,-505.86696789,0.00013698,2]
[342252342,1731655839760,-500.0,0.00013698,2]
[342252343,1731655839769,-500.0,0.00013698,2]
[342252344,1731655839778,-500.0,0.00013698,2]
[342252345,1731655839788,-501.23188047,0.00013698,2]
[342252346,1731655839797,-500.0,0.00013698,2]
[342252347,1731655839807,-500.0,0.00013698,2]
[342252348,1731655839816,-500.0,0.00013698,2]
[342252349,1731655839827,-500.0,0.00013698,2]
[342252350,1731655839838,-561.81400963,0.00013698,2]
[342252351,1731655839847,-418.76188623,0.00013698,2]
[342252352,1731655839857,-500.0,0.00013698,2]
[342252353,1731655839869,-500.0,0.00013698,2]
[342252354,1731655839879,-500.0,0.00013698,2]
[342252355,1731655839888,-500.0,0.00013698,2]
[342252358,1731655840035,-196.65691674,0.00013698,2]
[342252359,1731655840045,-500.0,0.00013698,2]
[342252360,1731655840055,-500.0,0.00013698,2]
[342252362,1731655840064,-506.60759167,0.00013698,2]
[342252363,1731655840074,-500.0,0.00013698,2]
[342252364,1731655840083,-500.0,0.00013698,2]
[342252365,1731655840092,-7742.96,0.00013698,2]
[342252366,1731655840101,-7742.96,0.00013698,2]
[342252368,1731655840110,-7742.96,0.00013698,2]
[342252370,1731655840126,-7742.96,0.00013698,2]
[342252372,1731655840135,-7742.96,0.00013698,2]
[342252373,1731655840144,-7742.96,0.00013698,2]
[342252374,1731655840154,-7742.96,0.00013698,2]
[342252375,1731655840163,-7742.96,0.00013698,2]
[342252376,1731655840172,-500.0,0.00013698,2]
[342252377,1731655840181,-7742.96,0.00013698,2]
[342252378,1731655840190,-7742.96,0.00013698,2]
[342252379,1731655840199,-7742.96,0.00013698,2]
[342252380,1731655840208,-7742.96,0.00013698,2]
[342252381,1731655840217,-500.0,0.00013698,2]
[342252382,1731655840227,-7742.96,0.00013698,2]
[342252383,1731655840236,-7742.96,0.00013698,2]
[342252384,1731655840245,-7742.96,0.00013698,2]
[342252385,1731655840255,-7742.96,0.00013698,2]
[342252386,1731655840264,-501.86016993,0.00013698,2]
[342252387,1731655840273,-500.0,0.00013698,2]
[342252388,1731655840283,-501.4817952,0.00013698,2]
[342252389,1731655840292,-500.0,0.00013698,2]
[342252390,1731655840301,-500.0,0.00013698,2]
[342252391,1731655840310,-1004.86002205,0.00013698,2]
[342252392,1731655840319,-500.0,0.00013698,2]
[342252393,1731655840329,-500.0,0.00013698,2]
[342252394,1731655840338,-515.89768243,0.00013698,2]
[342252395,1731655840347,-500.0,0.00013698,2]
[342252396,1731655840356,-500.0,0.00013698,2]
[342252397,1731655840368,-502.76603671,0.00013698,2]
[342252398,1731655840377,-500.0,0.00013698,2]
[342252399,1731655840386,-500.0,0.00013698,2]
[342252400,1731655840395,-500.0,0.00013698,2]
[342252401,1731655840404,-500.0,0.00013698,2]
[342252402,1731655840414,-500.0,0.00013698,2]
[342252403,1731655840423,-500.0,0.00013698,2]
[342252404,1731655840432,-500.0,0.00013698,2]
[342252405,1731655840441,-500.0,0.00013698,2]
[342252406,1731655840450,-500.0,0.00013698,2]
[342252407,1731655840459,-500.0,0.00013698,2]
[342252408,1731655840468,-500.0,0.00013698,2]
[342252409,1731655840477,-500.7948111,0.00013698,2]
[342252410,1731655840486,-500.0,0.00013698,2]
[342252411,1731655840495,-562.32,0.00013698,2]
[342252412,1731655840504,-193.42937321,0.00013698,2]
[342252413,1731655840513,-500.0,0.00013698,2]
[342252414,1731655840522,-504.72333658,0.00013698,2]
[342252415,1731655840532,-598.04380631,0.00013698,2]
[342252416,1731655840541,-500.0,0.00013698,2]
[342252417,1731655840549,-500.0,0.00013698,2]
[342252418,1731655840559,-500.0,0.00013698,2]
[342252419,1731655840568,-500.0,0.00013698,2]
[342252420,1731655840577,-500.0,0.00013698,2]
[342252421,1731655840585,-500.0,0.00013698,2]
[342252422,1731655840595,-355.34636228,0.00013698,2]
[342252423,1731655840603,-500.0,0.00013698,2]
[342252424,1731655840615,-500.0,0.00013698,2]
[342252425,1731655840626,-500.0,0.00013698,2]
[342252426,1731655840637,-500.0,0.00013698,2]
[342252427,1731655840647,-502.57278209,0.00013698,2]
[342252428,1731655840656,-500.0,0.00013698,2]
[342252429,1731655840665,-165.19761704,0.00013698,2]
[342252430,1731655840675,-500.0,0.00013698,2]
[342252431,1731655840684,-208.63978309,0.00013698,2]
[342252432,1731655840693,-539.21409926,0.00013698,2]
[342252433,1731655840702,-500.0,0.00013698,2]
[342252434,1731655840711,-511.57478454,0.00013698,2]
[342252435,1731655840720,-505.98709462,0.00013698,2]
[342252436,1731655840731,-500.0,0.00013698,2]
[342252437,1731655840746,-500.0,0.00013698,2]
[342252438,1731655840755,-552.50748746,0.00013698,2]
[342252439,1731655840764,-619.16945727,0.00013698,2]
[342252440,1731655840773,-502.92471835,0.00013698,2]
[342252441,1731655840783,-507.53078266,0.00013698,2]
[342252442,1731655840792,-601.83,0.00013698,2]
[342252443,1731655840802,-507.63425325,0.00013698,2]
[342252444,1731655840811,-500.0,0.00013698,2]
[342252445,1731655840820,-503.09844197,0.00013698,2]
[342252446,1731655840831,-503.67207861,0.00013698,2]
[342252447,1731655840840,-500.0,0.00013698,2]
[342252448,1731655840849,-500.0,0.00013698,2]
[342252449,1731655840858,-500.0,0.00013698,2]
[342252450,1731655840870,-500.0,0.00013698,2]
[342252451,1731655840879,-500.0,0.00013698,2]
[342252452,1731655840889,-500.0,0.00013698,2]
[342252453,1731655840898,-224.16150991,0.00013698,2]
[342252454,1731655840907,-237.98381948,0.00013698,2]
[342252455,1731655840917,-500.0,0.00013698,2]
[342252456,1731655840926,-500.0,0.00013698,2]
[342252457,1731655840935,-500.0,0.00013698,2]
[342252458,1731655840944,-500.0,0.00013698,2]
[342252459,1731655840952,-500.0,0.00013698,2]
[342252460,1731655840962,-500.0,0.00013698,2]
[342252461,1731655840971,-193.29723242,0.00013698,2]
[342252462,1731655840980,-500.0,0.00013698,2]
[342252463,1731655840989,-500.0,0.00013698,2]
[342252464,1731655840998,-500.0,0.00013698,2]
[342252465,1731655841007,-500.0,0.00013698,2]
[342252466,1731655841015,-500.0,0.00013698,2]
[342252467,1731655841025,-500.87823963,0.00013698,2]
[342252468,1731655841034,-566.90148136,0.00013698,2]
[342252469,1731655841043,-506.21576309,0.00013698,2]
[342252470,1731655841052,-500.0,0.00013698,2]
[342252471,1731655841062,-366.56070747,0.00013698,2]
[342252472,1731655841071,-500.0,0.00013698,2]
[342252473,1731655841079,-500.0,0.00013698,2]
[342252474,1731655841088,-500.0,0.00013698,2]
[342252475,1731655841098,-503.93876817,0.00013698,2]
[342252476,1731655841107,-502.52744041,0.00013698,2]